[Event "elllobregat Open Chess TnmT- 2nd Edition 2021"]
[Site "Castelldefels, Spain"]
[Date "2021.11.30"]
[Round "1.1"]
[White "Pogorelov, Ruslan"]
[Black "Abdusattorov, Nodirbek"]
[Result "0-1"]
[TimeControl "90min/40moves + 30min/end + 30sec increment per move starting from move 1"]
[WhiteTitle "GM"]
[BlackTitle "GM"]
[WhiteFideId "14100363"]
[BlackFideId "14204118"]
[WhiteElo "2338"]
[BlackElo "2646"]

1. Nf3 {[%clk 01:30:54]} {[%emt 00:00:05]} d5 {[%clk 01:30:43]} {[%emt
00:00:17]} 2. d4 {[%clk 01:31:15]} {[%emt 00:00:08]} Nf6 {[%clk 01:31:05]}
{[%emt 00:00:08]} 3. c4 {[%clk 01:31:37]} {[%emt 00:00:08]} e6 {[%clk
01:31:25]} {[%emt 00:00:10]} 4. Nc3 {[%clk 01:31:52]} {[%emt 00:00:16]} dxc4
{[%clk 01:31:19]} {[%emt 00:00:36]} 5. e4 {[%clk 01:31:29]} {[%emt 00:00:52]}
b5 {[%clk 01:31:38]} {[%emt 00:00:11]} 6. e5 {[%clk 01:29:55]} {[%emt
00:02:04]} Nd5 {[%clk 01:31:59]} {[%emt 00:00:09]} 7. Nxb5 {[%clk 01:29:45]}
{[%emt 00:00:39]} Nb6 {[%clk 01:32:18]} {[%emt 00:00:11]} 8. Be2 {[%clk
01:28:45]} {[%emt 00:01:30]} Nc6 {[%clk 01:32:35]} {[%emt 00:00:13]} 9. O-O
{[%clk 01:28:12]} {[%emt 00:01:03]} Be7 {[%clk 01:33:00]} {[%emt 00:00:05]} 10.
b3 {[%clk 01:22:45]} {[%emt 00:05:59]} cxb3 {[%clk 01:30:50]} {[%emt 00:02:39]}
11. axb3 {[%clk 01:23:00]} {[%emt 00:00:14]} O-O {[%clk 01:28:03]} {[%emt
00:03:17]} 12. Ba3 {[%clk 01:15:53]} {[%emt 00:07:37]} Bb7 {[%clk 01:26:55]}
{[%emt 00:01:38]} 13. Bxe7 {[%clk 01:10:02]} {[%emt 00:06:21]} Qxe7 {[%clk
01:27:04]} {[%emt 00:00:22]} 14. Qc1 {[%clk 01:00:26]} {[%emt 00:10:05]} a6
{[%clk 01:20:17]} {[%emt 00:07:18]} 15. Nc3 {[%clk 00:56:27]} {[%emt 00:04:28]}
Nb4 {[%clk 01:13:19]} {[%emt 00:07:29]} 16. Na4 {[%clk 00:52:36]} {[%emt
00:04:20]} Nxa4 {[%clk 01:07:26]} {[%emt 00:06:24]} 17. Rxa4 {[%clk 00:52:27]}
{[%emt 00:00:38]} a5 {[%clk 01:07:18]} {[%emt 00:00:38]} 18. Qc5 {[%clk
00:31:57]} {[%emt 00:21:00]} Qxc5 {[%clk 01:06:49]} {[%emt 00:01:00]} 19. dxc5
{[%clk 00:32:24]} {[%emt 00:00:02]} Bc6 {[%clk 01:05:25]} {[%emt 00:01:54]} 20.
Raa1 {[%clk 00:32:36]} {[%emt 00:00:17]} Rfd8 {[%clk 00:58:28]} {[%emt
00:07:28]} 21. Rfd1 {[%clk 00:32:33]} {[%emt 00:00:32]} Rxd1+ {[%clk 00:57:57]}
{[%emt 00:01:01]} 22. Rxd1 {[%clk 00:32:34]} {[%emt 00:00:29]} Bd5 {[%clk
00:40:26]} {[%emt 00:18:02]} 23. Nd4 {[%clk 00:32:09]} {[%emt 00:00:54]} g5
{[%clk 00:39:17]} {[%emt 00:01:40]} 24. Ra1 {[%clk 00:26:42]} {[%emt 00:05:57]}
Be4 {[%clk 00:39:14]} {[%emt 00:00:33]} 25. f3 {[%clk 00:25:16]} {[%emt
00:01:56]} Bd3 {[%clk 00:39:16]} {[%emt 00:00:28]} 26. Kf2 {[%clk 00:18:23]}
{[%emt 00:07:23]} Bxe2 {[%clk 00:37:33]} {[%emt 00:02:14]} 27. Nxe2 {[%clk
00:14:21]} {[%emt 00:04:32]} Nc6 {[%clk 00:38:01]} {[%emt 00:00:02]} 28. Ke3
{[%clk 00:09:57]} {[%emt 00:04:53]} Rd8 {[%clk 00:38:21]} {[%emt 00:00:11]} 29.
g3 {[%clk 00:07:54]} {[%emt 00:02:32]} Rd5 {[%clk 00:31:57]} {[%emt 00:06:55]}
30. f4 {[%clk 00:07:50]} {[%emt 00:00:34]} Rxc5 {[%clk 00:32:23]} {[%emt
00:00:04]} 31. Rc1 {[%clk 00:03:48]} {[%emt 00:04:31]} gxf4+ {[%clk 00:32:41]}
{[%emt 00:00:13]} 32. gxf4 {[%clk 00:04:08]} {[%emt 00:00:09]} Rxc1 {[%clk
00:33:06]} {[%emt 00:00:07]} 33. Nxc1 {[%clk 00:04:35]} {[%emt 00:00:02]} Kg7
{[%clk 00:33:05]} {[%emt 00:00:32]} 34. Ke4 {[%clk 00:01:36]} {[%emt 00:03:28]}
Kg6 {[%clk 00:33:13]} {[%emt 00:00:22]} 35. Ne2 {[%clk 00:01:12]} {[%emt
00:00:53]} Nb4 {[%clk 00:33:27]} {[%emt 00:00:16]} 36. Nd4 {[%clk 00:00:52]}
{[%emt 00:00:51]} Na6 {[%clk 00:25:38]} {[%emt 00:08:20]} 37. Kf3 {[%clk
00:01:04]} {[%emt 00:00:17]} Nc5 {[%clk 00:25:24]} {[%emt 00:00:45]} 38. Ke3
{[%clk 00:00:57]} {[%emt 00:00:36]} Kh5 {[%clk 00:24:57]} {[%emt 00:00:57]} 39.
Kf3 {[%clk 00:00:47]} {[%emt 00:00:40]} Kh4 {[%clk 00:25:26]} {[%emt 00:00:01]}
40. f5 {[%clk 00:30:50]} {[%emt 00:00:27]} exf5 {[%clk 00:50:14]} {[%emt
00:05:43]} 41. Nxf5+ {[%clk 00:31:16]} {[%emt 00:00:03]} Kh3 {[%clk 00:50:38]}
{[%emt 00:00:06]} 42. Nd4 {[%clk 00:27:02]} {[%emt 00:04:44]} h6 {[%clk
00:49:16]} {[%emt 00:01:52]} 43. Nb5 {[%clk 00:17:44]} {[%emt 00:09:47]} Nxb3
{[%clk 00:43:55]} {[%emt 00:05:52]} 44. Nxc7 {[%clk 00:18:03]} {[%emt
00:00:11]} a4 {[%clk 00:42:37]} {[%emt 00:01:48]} 45. Nb5 {[%clk 00:18:23]}
{[%emt 00:00:10]} h5 {[%clk 00:40:01]} {[%emt 00:03:07]} 46. Kf4 {[%clk
00:12:37]} {[%emt 00:06:16]} h4 {[%clk 00:39:58]} {[%emt 00:00:33]} 47. Kg5
{[%clk 00:12:29]} {[%emt 00:00:38]} Nd2 {[%clk 00:40:15]} {[%emt 00:00:13]} 48.
Kf6 {[%clk 00:11:32]} {[%emt 00:01:27]} Nf3 {[%clk 00:40:23]} {[%emt 00:00:22]}
49. Kxf7 {[%clk 00:11:48]} {[%emt 00:00:14]} Nxe5+ {[%clk 00:40:30]} {[%emt
00:00:24]} 50. Ke6 {[%clk 00:12:05]} {[%emt 00:00:12]} Nf3 {[%clk 00:40:33]}
{[%emt 00:00:28]} 51. Kd5 {[%clk 00:12:19]} {[%emt 00:00:16]} Kxh2 {[%clk
00:40:54]} {[%emt 00:00:08]} 52. Kc4 {[%clk 00:12:23]} {[%emt 00:00:26]} h3
{[%clk 00:41:12]} {[%emt 00:00:13]} 53. Nc3 {[%clk 00:12:12]} {[%emt 00:00:41]}
Kg2 {[%clk 00:41:32]} {[%emt 00:00:11]} 54. Kd4 {[%emt 00:00:12]} 0-1

[Event "elllobregat Open Chess TnmT- 2nd Edition 2021"]
[Site "Castelldefels, Spain"]
[Date "2021.11.30"]
[Round "1.2"]
[White "Ponomariov, Ruslan"]
[Black "Heinemann, Josefine"]
[Result "1-0"]
[TimeControl "90min/40moves + 30min/end + 30sec increment per move starting from move 1"]
[WhiteTitle "GM"]
[BlackTitle "WGM"]
[WhiteFideId "14103320"]
[BlackFideId "12900460"]
[WhiteElo "2633"]
[BlackElo "2336"]

1. e4 {[%clk 01:30:57]} {[%emt 00:00:01]} c5 {[%clk 01:30:54]} {[%emt
00:00:06]} 2. Nf3 {[%clk 01:31:17]} {[%emt 00:00:10]} d6 {[%clk 01:31:19]}
{[%emt 00:00:05]} 3. d4 {[%clk 01:31:13]} {[%emt 00:00:34]} cxd4 {[%clk
01:31:43]} {[%emt 00:00:06]} 4. Nxd4 {[%clk 01:31:39]} {[%emt 00:00:03]} Nf6
{[%clk 01:32:04]} {[%emt 00:00:09]} 5. Nc3 {[%clk 01:31:52]} {[%emt 00:00:17]}
a6 {[%emt 00:00:26]} 6. Be2 {[%clk 01:31:07]} {[%emt 00:00:54]} e5 {[%clk
01:32:38]} {[%emt 00:00:22]} 7. Nb3 {[%clk 01:31:05]} {[%emt 00:00:31]} Be7
{[%clk 01:33:00]} {[%emt 00:00:08]} 8. O-O {[%clk 01:31:12]} {[%emt 00:00:24]}
O-O {[%clk 01:33:23]} {[%emt 00:00:07]} 9. Qd3 {[%clk 01:31:26]} {[%emt
00:02:12]} Be6 {[%clk 01:30:13]} {[%emt 00:01:43]} 10. Bd2 {[%clk 01:31:18]}
{[%emt 00:00:38]} Nbd7 {[%clk 01:27:57]} {[%emt 00:02:46]} 11. Nd5 {[%clk
01:31:20]} {[%emt 00:00:27]} Bxd5 {[%clk 01:28:17]} {[%emt 00:00:10]} 12. exd5
{[%emt 00:00:10]} Ne8 {[%clk 01:23:53]} {[%emt 00:04:48]} 13. Na5 {[%clk
01:26:54]} {[%emt 00:05:22]} Rb8 {[%clk 01:19:37]} {[%emt 00:04:46]} 14. b4
{[%clk 01:20:01]} {[%emt 00:07:23]} Bg5 {[%clk 01:13:28]} {[%emt 00:06:39]} 15.
Bxg5 {[%clk 01:17:46]} {[%emt 00:02:45]} Qxg5 {[%clk 01:13:52]} {[%emt
00:00:06]} 16. c4 {[%clk 01:17:57]} {[%emt 00:00:19]} f5 {[%clk 01:10:45]}
{[%emt 00:03:38]} 17. Rac1 {[%clk 01:13:18]} {[%emt 00:05:09]} e4 {[%clk
01:00:55]} {[%emt 00:10:19]} 18. Qe3 {[%clk 01:11:59]} {[%emt 00:01:49]} Qh4
{[%clk 00:48:52]} {[%emt 00:12:34]} 19. c5 {[%clk 00:59:19]} {[%emt 00:13:10]}
Ne5 {[%clk 00:40:52]} {[%emt 00:08:29]} 20. c6 {[%clk 00:53:33]} {[%emt
00:06:16]} b6 {[%clk 00:31:56]} {[%emt 00:09:27]} 21. Nb7 {[%clk 00:51:38]}
{[%emt 00:02:25]} Rf6 {[%clk 00:26:43]} {[%emt 00:05:43]} 22. f4 {[%clk
00:34:11]} {[%emt 00:17:57]} exf3 {[%emt 00:04:06]} 23. gxf3 {[%clk 00:33:07]}
{[%emt 00:01:33]} b5 {[%clk 00:20:50]} {[%emt 00:02:47]} 24. f4 {[%clk
00:17:04]} {[%emt 00:16:34]} Ng4 {[%clk 00:19:22]} {[%emt 00:01:58]} 25. Qg3
{[%clk 00:12:09]} {[%emt 00:05:25]} Qxg3+ {[%clk 00:17:51]} {[%emt 00:02:02]}
26. hxg3 {[%clk 00:12:37]} {[%emt 00:00:01]} Ne3 {[%clk 00:18:01]} {[%emt
00:00:19]} 27. Rfe1 {[%clk 00:12:42]} {[%emt 00:00:25]} Nxd5 {[%clk 00:16:23]}
{[%emt 00:02:08]} 28. Bf3 {[%emt 00:01:24]} Ndc7 {[%clk 00:13:44]} {[%emt
00:02:08]} 29. Re7 {[%clk 00:12:15]} {[%emt 00:01:06]} Kf8 {[%clk 00:12:47]}
{[%emt 00:01:27]} 30. Rd7 {[%clk 00:11:55]} {[%emt 00:00:49]} Rc8 {[%clk
00:09:35]} {[%emt 00:03:42]} 31. Kf2 {[%clk 00:08:12]} {[%emt 00:04:13]} Na8
{[%clk 00:07:55]} {[%emt 00:02:11]} 32. Bh5 {[%clk 00:05:28]} {[%emt 00:03:13]}
g6 {[%clk 00:05:51]} {[%emt 00:02:35]} 33. Bf3 {[%clk 00:05:51]} {[%emt
00:00:06]} Nb6 {[%clk 00:04:25]} {[%emt 00:01:57]} 34. Rxh7 {[%clk 00:05:39]}
{[%emt 00:00:41]} d5 {[%clk 00:04:16]} {[%emt 00:00:39]} 35. Rh8+ {[%clk
00:03:58]} {[%emt 00:02:11]} Ke7 {[%clk 00:03:50]} {[%emt 00:00:56]} 36. Rch1
{[%emt 00:02:31]} Rf7 {[%clk 00:02:00]} {[%emt 00:02:20]} 37. Re1+ {[%clk
00:02:03]} {[%emt 00:00:23]} Kf6 {[%clk 00:01:57]} {[%emt 00:00:34]} 38. Rhxe8
{[%clk 00:02:22]} {[%emt 00:00:11]} Rxc6 {[%clk 00:01:53]} {[%emt 00:00:34]} 39.
Nc5 {[%clk 00:02:43]} {[%emt 00:00:08]} 1-0

[Event "elllobregat Open Chess TnmT- 2nd Edition 2021"]
[Site "Castelldefels, Spain"]
[Date "2021.11.30"]
[Round "1.3"]
[White "Klimkowski, Jan"]
[Black "Santos Latasa, Jaime"]
[Result "1/2-1/2"]
[TimeControl "90min/40moves + 30min/end + 30sec increment per move starting from move 1"]
[WhiteTitle "FM"]
[BlackTitle "GM"]
[WhiteFideId "21856222"]
[BlackFideId "2293307"]
[WhiteElo "2333"]
[BlackElo "2633"]

1. d4 {[%clk 01:30:58]} Nf6 {[%clk 01:30:43]} {[%emt 00:00:17]} 2. c4 {[%clk
01:31:20]} {[%emt 00:00:08]} e6 {[%clk 01:31:06]} {[%emt 00:00:07]} 3. Nf3
{[%clk 01:31:44]} {[%emt 00:00:06]} d5 {[%clk 01:31:26]} {[%emt 00:00:11]} 4.
g3 {[%clk 01:32:06]} {[%emt 00:00:08]} Bb4+ {[%clk 01:28:38]} {[%emt 00:03:18]}
5. Bd2 {[%clk 01:32:24]} {[%emt 00:00:11]} Be7 {[%clk 01:29:03]} {[%emt
00:00:06]} 6. Bg2 {[%clk 01:32:36]} {[%emt 00:00:18]} c6 {[%clk 01:29:24]}
{[%emt 00:00:09]} 7. Qc2 {[%clk 01:32:41]} {[%emt 00:00:25]} Nbd7 {[%clk
01:29:45]} {[%emt 00:00:10]} 8. O-O {[%clk 01:32:54]} {[%emt 00:00:17]} O-O
{[%clk 01:29:04]} {[%emt 00:01:11]} 9. b3 {[%clk 01:33:02]} {[%emt 00:00:22]}
Ne4 {[%clk 08:19:15]} {[%emt 00:00:19]} 10. Nc3 {[%clk 01:31:38]} {[%emt
00:01:53]} f5 {[%clk 01:25:53]} {[%emt 00:03:52]} 11. Rad1 {[%clk 01:28:54]}
{[%emt 00:03:14]} Bf6 {[%clk 01:19:29]} {[%emt 00:06:55]} 12. Nxe4 {[%clk
01:17:48]} {[%emt 00:11:36]} fxe4 {[%clk 01:16:59]} {[%emt 00:03:01]} 13. Ne5
{[%clk 01:18:13]} {[%emt 00:00:04]} Bxe5 {[%clk 01:12:47]} {[%emt 00:04:42]} 14.
dxe5 {[%clk 01:18:22]} {[%emt 00:00:22]} Qe7 {[%clk 01:13:10]} {[%emt
00:00:07]} 15. Bc3 {[%emt 00:03:27]} b6 {[%clk 01:11:07]} {[%emt 00:01:54]} 16.
Qd2 {[%clk 01:10:42]} {[%emt 00:05:52]} Rf7 {[%clk 01:08:15]} {[%emt 00:03:21]}
17. cxd5 {[%clk 01:05:37]} {[%emt 00:05:36]} cxd5 {[%clk 01:03:57]} {[%emt
00:04:48]} 18. Rc1 {[%clk 01:02:38]} {[%emt 00:03:28]} Ba6 {[%clk 01:01:23]}
{[%emt 00:03:05]} 19. Bd4 {[%clk 01:01:32]} {[%emt 00:01:35]} Rff8 {[%clk
00:56:01]} {[%emt 00:05:52]} 20. Rc7 {[%clk 00:56:50]} {[%emt 00:05:10]} Rfc8
{[%clk 00:55:57]} {[%emt 00:00:36]} 21. Rfc1 {[%clk 00:56:59]} {[%emt
00:00:21]} Qd8 {[%clk 00:56:19]} {[%emt 00:00:08]} 22. R7c6 {[%clk 00:55:04]}
{[%emt 00:02:24]} Qe8 {[%clk 00:56:32]} {[%emt 00:00:19]} 23. Rxc8 {[%clk
00:43:31]} {[%emt 00:12:03]} Rxc8 {[%clk 00:56:51]} {[%emt 00:00:12]} 24. Rxc8
{[%clk 00:43:52]} {[%emt 00:00:09]} Qxc8 {[%clk 00:57:15]} {[%emt 00:00:06]} 25.
Bh3 {[%clk 00:43:30]} {[%emt 00:00:52]} Nf8 {[%clk 00:55:57]} {[%emt 00:01:48]}
26. f4 {[%clk 00:41:02]} {[%emt 00:02:59]} exf3 {[%clk 00:55:27]} {[%emt
00:00:59]} 27. exf3 {[%clk 00:41:25]} {[%emt 00:00:06]} h6 {[%clk 00:54:40]}
{[%emt 00:01:17]} 28. f4 {[%clk 00:39:10]} {[%emt 00:02:45]} Qe8 {[%clk
00:55:00]} {[%emt 00:00:10]} 29. Qc2 {[%clk 00:38:44]} {[%emt 00:00:56]} Qf7
{[%clk 00:49:18]} {[%emt 00:06:13]} 30. Bg4 {[%clk 00:34:12]} {[%emt 00:05:01]}
h5 {[%clk 00:46:07]} {[%emt 00:03:41]} 31. Bh3 {[%clk 00:34:36]} {[%emt
00:00:06]} h4 {[%clk 00:45:20]} {[%emt 00:01:17]} 32. Bg4 {[%clk 00:34:26]}
{[%emt 00:00:40]} hxg3 {[%clk 00:45:17]} {[%emt 00:00:34]} 33. hxg3 {[%clk
00:34:50]} {[%emt 00:00:05]} Qe7 {[%clk 00:44:48]} {[%emt 00:00:59]} 34. Qd2
{[%clk 00:30:55]} {[%emt 00:04:26]} Qf7 {[%clk 00:45:06]} {[%emt 00:00:12]} 35.
Qc2 {[%clk 00:30:59]} {[%emt 00:00:25]} Qe7 {[%clk 00:45:31]} {[%emt 00:00:06]}
36. Be3 {[%clk 00:27:04]} {[%emt 00:04:25]} Qb4 {[%clk 00:44:48]} {[%emt
00:01:12]} 37. Qf2 {[%clk 00:25:40]} {[%emt 00:01:53]} Qe4 {[%clk 00:43:06]}
{[%emt 00:02:13]} 38. Bh3 {[%clk 00:23:52]} {[%emt 00:02:18]} Qb1+ {[%clk
00:43:12]} {[%emt 00:00:24]} 39. Kh2 {[%clk 00:24:05]} {[%emt 00:00:17]} Bd3
{[%clk 00:43:31]} {[%emt 00:00:12]} 40. g4 {[%clk 00:53:01]} {[%emt 00:01:33]}
g6 {[%clk 01:12:25]} {[%emt 00:01:36]} 41. Bd4 {[%clk 00:49:58]} {[%emt
00:03:33]} Bc2 {[%clk 01:08:22]} {[%emt 00:04:34]} 42. Bg2 {[%clk 00:42:08]}
{[%emt 00:08:19]} Qxa2 {[%clk 00:58:44]} {[%emt 00:10:08]} 43. f5 {[%clk
00:42:28]} {[%emt 00:00:10]} Bxb3 {[%clk 00:59:11]} {[%emt 00:00:03]} 44. Qf4
{[%clk 00:31:44]} {[%emt 00:11:14]} Qa4 {[%clk 00:58:51]} {[%emt 00:00:51]} 45.
f6 {[%clk 00:31:28]} {[%emt 00:00:45]} Qd7 {[%clk 00:59:04]} {[%emt 00:00:17]}
46. Bb2 {[%clk 00:31:02]} {[%emt 00:00:57]} Bc4 {[%clk 00:56:58]} {[%emt
00:02:36]} 47. Ba3 {[%clk 00:30:48]} {[%emt 00:00:43]} Qh7+ {[%clk 00:57:00]}
{[%emt 00:00:28]} 48. Bh3 {[%clk 00:29:12]} {[%emt 00:02:06]} Nd7 {[%clk
00:53:31]} {[%emt 00:03:59]} 49. Kg3 {[%clk 00:23:52]} {[%emt 00:05:51]} Kf7
{[%clk 00:52:30]} {[%emt 00:01:30]} 50. g5 {[%clk 00:22:41]} {[%emt 00:01:41]}
Qh5 {[%clk 00:51:35]} {[%emt 00:01:24]} 51. Bg4 {[%clk 00:22:11]} {[%emt
00:01:00]} Qh1 {[%clk 00:49:49]} {[%emt 00:02:17]} 52. Bxe6+ {[%clk 00:22:30]}
{[%emt 00:00:10]} Kxe6 {[%clk 00:50:13]} {[%emt 00:00:07]} 53. Qg4+ {[%clk
00:22:56]} {[%emt 00:00:04]} Kxe5 {[%clk 00:50:37]} {[%emt 00:00:06]} 54. Qf4+
{[%clk 00:22:51]} {[%emt 00:00:33]} Ke6 {[%clk 00:51:01]} {[%emt 00:00:07]} 55.
Qd6+ {[%clk 00:23:14]} {[%emt 00:00:06]} Kf5 {[%clk 00:51:24]} {[%emt
00:00:08]} 56. Qf4+ {[%clk 00:20:48]} {[%emt 00:02:55]} Ke6 {[%clk 00:51:46]}
{[%emt 00:00:09]} 57. Qd6+ {[%clk 00:20:43]} {[%emt 00:00:34]} Kf5 {[%clk
00:52:10]} {[%emt 00:00:06]} 58. Qf4+ {[%clk 00:21:04]} {[%emt 00:00:09]}
1/2-1/2

[Event "elllobregat Open Chess TnmT- 2nd Edition 2021"]
[Site "Castelldefels, Spain"]
[Date "2021.11.30"]
[Round "1.4"]
[White "Karthikeyan, Murali"]
[Black "Garcia Martin, Marta"]
[Result "1-0"]
[TimeControl "90min/40moves + 30min/end + 30sec increment per move starting from move 1"]
[WhiteTitle "GM"]
[BlackTitle "IM"]
[WhiteFideId "5074452"]
[BlackFideId "32084030"]
[WhiteElo "2630"]
[BlackElo "2324"]

1. e4 {[%clk 01:30:54]} {[%emt 00:00:05]} e5 {[%clk 01:30:49]} {[%emt
00:00:12]} 2. Nf3 {[%clk 01:31:17]} {[%emt 00:00:06]} Nc6 {[%clk 01:31:13]}
{[%emt 00:00:07]} 3. Bb5 {[%clk 01:31:41]} {[%emt 00:00:05]} a6 {[%clk
01:31:35]} {[%emt 00:00:09]} 4. Ba4 {[%clk 01:32:07]} {[%emt 00:00:04]} Nf6
{[%clk 01:31:53]} {[%emt 00:00:12]} 5. O-O {[%clk 01:32:27]} {[%emt 00:00:09]}
Be7 {[%clk 01:32:05]} {[%emt 00:00:18]} 6. d3 {[%clk 01:32:52]} {[%emt
00:00:06]} d6 {[%clk 01:31:48]} {[%emt 00:00:48]} 7. c3 {[%clk 01:33:10]}
{[%emt 00:00:11]} O-O {[%clk 01:32:06]} {[%emt 00:00:11]} 8. Re1 {[%clk
01:32:55]} {[%emt 00:00:45]} Re8 {[%clk 01:31:56]} {[%emt 00:00:41]} 9. h3
{[%clk 01:33:13]} {[%emt 00:00:11]} h6 {[%clk 01:31:01]} {[%emt 00:01:25]} 10.
d4 {[%clk 01:28:49]} {[%emt 00:04:54]} b5 {[%clk 01:24:50]} {[%emt 00:06:42]}
11. Bc2 {[%clk 01:28:21]} {[%emt 00:00:57]} Bf8 {[%clk 01:24:35]} {[%emt
00:00:45]} 12. Nbd2 {[%clk 01:23:45]} {[%emt 00:05:06]} Bb7 {[%clk 01:23:03]}
{[%emt 00:02:03]} 13. d5 {[%clk 01:22:53]} {[%emt 00:01:21]} Ne7 {[%clk
01:07:24]} {[%emt 00:16:08]} 14. b3 {[%clk 01:22:05]} {[%emt 00:01:19]} c6
{[%clk 01:06:35]} {[%emt 00:01:19]} 15. c4 {[%clk 01:22:23]} {[%emt 00:00:12]}
Ng6 {[%clk 01:06:44]} {[%emt 00:00:21]} 16. Nf1 {[%clk 01:19:28]} {[%emt
00:03:24]} Qc7 {[%clk 01:02:37]} {[%emt 00:04:37]} 17. Ne3 {[%clk 01:11:55]}
{[%emt 00:08:02]} Rec8 {[%clk 00:50:41]} {[%emt 00:12:28]} 18. Bd2 {[%clk
01:09:33]} {[%emt 00:02:52]} bxc4 {[%clk 00:40:51]} {[%emt 00:10:20]} 19. bxc4
{[%emt 00:05:43]} a5 {[%emt 00:04:32]} 20. Nh2 {[%emt 00:11:15]} Ba6 {[%emt
00:06:51]} 21. Nhg4 {[%clk 00:39:21]} {[%emt 00:01:38]} Nd7 22. Ba4 {[%emt
00:17:25]} Bb7 {[%emt 00:06:24]} 23. Rc1 {[%emt 00:07:06]} Nc5 {[%emt
00:00:31]} 24. Bc2 {[%emt 00:10:03]} Nf4 {[%emt 00:03:19]} 25. Nf5 {[%clk
00:27:38]} {[%emt 00:00:37]} h5 26. Nf6+ {[%emt 00:07:36]} gxf6 {[%clk
00:06:57]} {[%emt 00:00:48]} 27. Bxf4 {[%emt 00:05:17]} exf4 {[%clk 00:02:14]}
{[%emt 00:00:06]} 28. Qxh5 {[%clk 00:26:24]} {[%emt 00:00:55]} Bg7 {[%clk
00:02:12]} 29. Qg4 {[%clk 00:17:14]} {[%emt 00:04:20]} Ne6 30. Rcd1 {[%emt
00:09:21]} Rd8 {[%clk 00:01:00]} {[%emt 00:00:22]} 31. dxe6 {[%clk 00:10:35]}
fxe6 {[%clk 00:00:33]} 32. Nh6+ {[%emt 00:02:26]} Kh7 33. e5+ {[%clk 00:10:24]}
f5 {[%clk 00:00:59]} {[%emt 00:00:04]} 34. Nxf5 {[%clk 00:10:46]} {[%emt
00:00:07]} exf5 {[%clk 00:01:06]} {[%emt 00:00:23]} 35. Bxf5+ {[%clk 00:11:06]}
{[%emt 00:00:10]} Kh8 {[%clk 00:01:00]} {[%emt 00:00:37]} 36. Qh5+ {[%clk
00:10:36]} {[%emt 00:01:00]} Kg8 {[%clk 00:01:25]} {[%emt 00:00:06]} 37. Be6+
{[%clk 00:11:00]} {[%emt 00:00:05]} 1-0

[Event "elllobregat Open Chess TnmT- 2nd Edition 2021"]
[Site "Castelldefels, Spain"]
[Date "2021.11.30"]
[Round "1.5"]
[White "Cadilhac, Igor Tokuichi Kikuchi"]
[Black "Erigaisi, Arjun"]
[Result "0-1"]
[TimeControl "90min/40moves + 30min/end + 30sec increment per move starting from move 1"]
[WhiteTitle "FM"]
[BlackTitle "GM"]
[WhiteFideId "2132150"]
[BlackFideId "35009192"]
[WhiteElo "2323"]
[BlackElo "2627"]

1. e4 {[%emt 00:06:49]} e6 {[%emt 00:01:03]} 2. d4 {[%emt 00:00:11]} d5 {[%emt
00:00:07]} 3. Nc3 {[%emt 00:00:06]} Bb4 {[%emt 00:00:05]} 4. e5 {[%emt
00:00:09]} c5 {[%emt 00:00:06]} 5. a3 {[%emt 00:00:09]} Bxc3+ {[%emt 00:00:06]}
6. bxc3 {[%emt 00:00:06]} Qc7 {[%emt 00:00:50]} 7. Bd3 {[%emt 00:02:59]} Nc6
{[%emt 00:02:44]} 8. Qg4 {[%emt 00:01:45]} f5 {[%emt 00:00:58]} 9. exf6 {[%emt
00:12:00]} Nxf6 {[%emt 00:00:10]} 10. Qg3 {[%emt 00:00:26]} Qe7 {[%emt
00:21:58]} 11. dxc5 {[%emt 00:21:16]} e5 {[%emt 00:00:45]} 12. Nh3 {[%emt
00:11:27]} O-O {[%emt 00:17:54]} 13. O-O {[%emt 00:01:12]} e4 {[%emt 00:01:21]}
14. Be2 {[%emt 00:01:00]} Bxh3 {[%emt 00:00:12]} 15. Qxh3 {[%emt 00:00:56]}
Qxc5 {[%emt 00:00:09]} 16. Rb1 {[%emt 00:05:24]} Rf7 {[%emt 00:01:32]} 17. Bg5
{[%emt 00:10:15]} Qd6 {[%emt 00:12:32]} 18. Rfd1 {[%emt 00:00:28]} Raf8 {[%emt
00:07:33]} 19. c4 {[%emt 00:04:05]} d4 {[%emt 00:01:49]} 20. Rb5 {[%emt
00:02:54]} h6 {[%emt 00:15:51]} 21. Bh4 {[%emt 00:01:21]} a6 {[%emt 00:02:13]}
22. Rb6 {[%emt 00:02:30]} Qd7 {[%emt 00:04:48]} 23. Qb3 {[%emt 00:02:19]} Ng4
{[%emt 00:03:56]} 24. c5 {[%emt 00:02:26]} Nge5 {[%emt 00:02:01]} 25. Bg3
{[%emt 00:01:29]} Kh7 {[%emt 00:01:12]} 26. Qa4 {[%emt 00:02:43]} Qe7 {[%emt
00:01:06]} 27. Bc4 {[%emt 00:00:26]} Nxc4 {[%emt 00:01:47]} 28. Qxc4 Rf5 {[%emt
00:00:02]} 29. Bd6 {[%emt 00:00:44]} Qh4 {[%emt 00:00:34]} 30. Bxf8 {[%emt
00:00:50]} Qxf2+ {[%emt 00:00:07]} 31. Kh1 {[%emt 00:00:05]} Ne5 {[%emt
00:00:57]} 0-1